Cogmind - Beta 13 @@@ ROGUE MODE // 2024.07.22 @ 22:56:24 Player: OctagonalPrism Result: Destroyed by S-10 Pest with Light Assault Rifle Performance ------------- Evolutions (1) 500 Regions Visited (5) 1000 Robots Destroyed (54) 270 Value Destroyed (1138) 1138 Prototype IDs (4) 80 Alien Tech Used (0) 0 Bonus (408) 408 TOTAL SCORE: 3396 Bonus ------- High Alert Combat Kills 62 Follower Combat Kills 46 Aligned with FarCom 300 Cogmind --------- Core Integrity 0/400 Matter 282/300 Energy 111/125 System Corruption 10% Temperature Cool (0) Movement Rolling (95) Ox1 Location -8/Mines Parts ------- > --- POWER (1) -------- Light Ion Engine > --- PROPULSION (2) --- Wheel > --- UTILITY (4) ------ Large Storage Unit Weight Redist. System Improved Terrain Scanner ECM Suite > --- WEAPON (2) ------- Light Assault Rifle > --- INVENTORY (15) --- Improved Ion Engine Large Matter Pod (150) Improved Terrain Scanner Army-in-a-Box Peak State ------------ > --- POWER ------------ Light Nuclear Core > --- PROPULSION ------- Light Treads > --- UTILITY ---------- Large Storage Unit Weight Redist. System Structural Scanner ECM Suite > --- WEAPON ----------- YOLO Cannon > --- INVENTORY -------- Improved Ion Engine Large Matter Pod Improved Terrain Scanner Improved Terrain Scanner Assault Rifle Assault Rifle Grenade Launcher [Rating: 30] Favorites ----------- Power Light Nuclear Core Engine Ion Engine Power Core Light Nuclear Core Propulsion Light Treads Treads Light Treads Wheel Wheel Utility ECM Suite Device ECM Suite Storage Large Storage Unit Processor 0b10 Alert Chip Weapon Assault Rifle Energy Cannon YOLO Cannon Ballistic Gun Assault Rifle Ballistic Cannon Improved Light Cannon Launcher Grenade Launcher Build | -11 -10 -9 -9 -9 -8 ------- Run | Yrd Mat Mat Min Exi Min Slots Evolved 2 | . . 2 . . . Power . | . . . . . . Propulsion . | . . . . . . Utility 2 | . . 2 . . . Weapon . | . . . . . . Parts Attached 45 | 7 2 14 9 5 8 Power 6 | 1 . 2 2 . 1 Engine 4 | 1 . 1 1 . 1 Core 2 | . . 1 1 . . Reactor . | . . . . . . Propulsion 10 | 2 . 3 3 . 2 Treads 8 | 2 . 3 3 . . Leg . | . . . . . . Wheel 2 | . . . . . 2 Hover . | . . . . . . Flight . | . . . . . . Utility 11 | 2 1 4 . 2 2 Device 7 | 2 . 3 . . 2 Storage 3 | . 1 1 . 1 . Processor 1 | . . . . 1 . Hackware . | . . . . . . Protection . | . . . . . . Artifact . | . . . . . . Weapon 18 | 2 1 5 4 3 3 Energy Gun . | . . . . . . Energy Cannon 1 | . . . . 1 . Ballistic Gun 11 | 2 1 2 2 2 2 Ballistic Cannon 2 | . . 2 . . . Launcher 4 | . . 1 2 . 1 Special Weapon . | . . . . . . Impact Weapon . | . . . . . . Slashing Weapon . | . . . . . . Piercing Weapon . | . . . . . . Special Melee Weapon . | . . . . . . Unidentified Prototypes 2 | . . . . 2 . Corrupted Parts 1 | . . . . . 1 System Corruption 3 | . . . . . 3 Parts Lost 14 | . . 3 4 . 7 Power 2 | . . . 1 . 1 Propulsion 6 | . . 1 3 . 2 Utility 1 | . . . . . 1 Weapon 5 | . . 2 . . 3 Highest Loss Streak 3 | . . 3 2 . 3 To Critical Strikes . | . . . . . . Average Slot Usage (%) 87 | . 90 98 98 78 71 Engine 4 | . 14 6 3 . 3 Core 6 | . . 4 7 11 7 Treads 15 | . 28 21 20 11 5 Wheel 1 | . . . . . 6 Device 28 | . 16 31 33 27 24 Storage 10 | . 2 11 11 11 11 Ballistic Gun 12 | . 28 3 18 17 11 Ballistic Cannon 5 | . . 17 . . . Launcher 1 | . . . 3 . 1 Naked Turns . | . . . . . . Heaviest Build 38 | 10 20 38 33 32 32 Greatest Support 46 | 40 40 46 40 20 26 Greatest Overweight (x) 10 | 1 . 1 1 1 10 Average Overweight (x) . | . . . . 1 1 Largest Inventory Capacity 15 | 5 10 15 15 15 15 Average Capacity 13 | 5 5 13 15 15 15 Most Carried 14 | 2 4 11 8 14 12 Average Carried 7 | 1 3 7 6 8 11 Final Capacity 15 | 5 10 15 15 15 15 Final Carried 12 | 2 4 9 5 12 9 Class Distribution -------------------- 47% | Infiltrator-Mutant 31% | Mutant 20% | Scavenger-Mutant Dominant Class ---------------- Mutant | -10/Materials Mutant | -9/Materials Infiltrator-Mutant | -9/Mines Infiltrator-Mutant | -9/Exiles Infiltrator-Mutant | -8/Mines Resources | -11 -10 -9 -9 -9 -8 ----------- Run | Yrd Mat Mat Min Exi Min Matter Collected 1401 | 218 . 828 258 . 97 Remotely . | . . . . . . Salvage Created 1304 | 83 90 849 230 . 52 Parts 108 | 12 5 70 12 . 9 Haulers Intercepted 1 | . . 1 . . . Recyclers Shooed 1 | . 1 . . . . Parts Field Recycled . | . . . . . . Retrieved Matter . | . . . . . . Parts Self-Destructed . | . . . . . . Prevented . | . . . . . . Kills | -11 -10 -9 -9 -9 -8 ------- Run | Yrd Mat Mat Min Exi Min Combat Hostiles Destroyed 41 | . 2 27 9 . 3 Melee 1 | . . . . . 1 Guns 14 | . 2 4 7 . 1 Cannons 21 | . . 21 . . . AOE 5 | . . 2 2 . 1 Classes Destroyed 9 | 1 1 7 . . . Builder 4 | . . 3 . . 1 Tunneler 4 | 4 . . . . . Hauler 1 | . . 1 . . . Recycler 1 | . . 1 . . . Watcher 3 | . . 3 . . . Swarmer 19 | . . 11 5 . 3 Grunt 17 | . 2 12 3 . . Brawler 2 | . . 1 1 . . Sentry 3 | . . 3 . . . Best Kill Streak 6 | 2 2 6 4 . 1 Combat Bots Only 5 | . 2 5 4 . 1 Max Kills in Single Turn 2 | 1 1 2 2 . 1 Gunslinging 1 | . . . 1 . . Exploded 1 | . . 1 1 . 1 Melee 1 | . . . . . 1 Uniques/NPCs Destroyed . | . . . . . . Combat | -11 -10 -9 -9 -9 -8 -------- Run | Yrd Mat Mat Min Exi Min Hostile Shots Fired 240 | . 10 131 43 . 56 Missed 57 | . 5 34 11 . 7 Damage Taken 1978 | . 62 1088 303 . 525 Core 415 | . 10 194 24 . 187 Absorbed by Shields . | . . . . . . Core Remaining (%) 98 | 100 96 . . . . Volleys Fired 101 | 8 6 62 16 . 9 Largest 2 | 2 2 2 2 . 2 Hottest 78 | 40 40 78 50 . 40 Shots Fired 191 | 16 12 121 31 . 11 Gun 84 | 16 12 20 28 . 8 Cannon 98 | . . 98 . . . Launcher 9 | . . 3 3 . 3 Special . | . . . . . . Kinetic 182 | 16 12 118 28 . 8 Thermal . | . . . . . . Explosive 9 | . . 3 3 . 3 Electromagnetic . | . . . . . . Robot Hit Streak 8 | 4 4 8 6 . 2 Robot Miss Streak 4 | 2 2 4 3 . 2 Penetration Max . | . . . . . . Secondary Targets 3 | . . . 2 . 1 Max Gunslinging Chain 1 | . . . 1 . 1 Shots Hit Robots 98 | 8 7 60 19 . 4 Core Hits 65 | 6 3 38 11 . 7 Critical Kills 1 | . 1 . . . . Critical Parts Destroyed . | . . . . . . Critical Strikes 1 | . 1 . . . . Destroy 1 | . 1 . . . . Melee Attacks . | . . . . . . Impact . | . . . . . . Slashing . | . . . . . . Piercing . | . . . . . . Sneak Attacks . | . . . . . . Combat Hostiles . | . . . . . . Follow-up Attacks . | . . . . . . Damage Inflicted 2286 | 75 112 1507 423 . 169 Guns 562 | 75 112 118 226 . 31 Cannons 1074 | . . 1074 . . . Explosions 585 | . . 315 197 . 73 Melee . | . . . . . . Ramming 65 | . . . . . 65 Kinetic 1636 | 75 112 1192 226 . 31 Thermal . | . . . . . . Explosive 585 | . . 315 197 . 73 Electromagnetic . | . . . . . . Impact . | . . . . . . Slashing . | . . . . . . Piercing . | . . . . . . Highest Corruption 10 | . . . . . 10 Average Corruption 9 | . . . . . 9 Corruption Purged . | . . . . . . Corruption Blocked . | . . . . . . Effects 7 | . . . . . 7 Matter Fused 5 | . . . . . 5 Heat Flow Errors 1 | . . . . . 1 Data Loss (minor) 1 | . . . . . 1 Overload Shots . | . . . . . . Overflow Damage 38 | . . 38 . . . Projectiles 25 | . . 25 . . . Explosions 13 | . . 13 . . . Melee . | . . . . . . Knockbacks 7 | . . 7 . . . Impact . | . . . . . . Kinetic 7 | . . 7 . . . Secondary . | . . . . . . Self-Inflicted Damage 95 | . . . . . 95 Shots 2 | . . . . . 2 Rammed 22 | . . . . . 22 Targets Rammed 22 | . . . . . 22 Kicked . | . . . . . . Crushed . | . . . . . . Highest Temperature 165 | . . 165 17 . 135 Average Temperature 52 | . . 52 10 . 77 Received Heat Transfer 525 | . 33 378 78 . 36 Siege Activations . | . . . . . . Robots Corrupted . | . . . . . . Combat Hostiles . | . . . . . . Parts Fried . | . . . . . . Impact Corruptions 1 | . . . . . 1 Robots Melted . | . . . . . . Combat Hostiles . | . . . . . . Parts Melted . | . . . . . . Heat Transferred . | . . . . . . Parts Sabotaged . | . . . . . . Parts Stolen . | . . . . . . Parts Stripped . | . . . . . . Power Chain Reactions . | . . . . . . Alert | -11 -10 -9 -9 -9 -8 ------- Run | Yrd Mat Mat Min Exi Min Peak Influence 669 | 20 63 669 416 . 32 Initial 232 | . 13 26 232 . . Average 176 | 8 30 286 303 . 6 Maximum Alert Level 2 | . . 2 2 . . Low Security (%) 56 | 100 100 45 . . 100 Level 1 31 | . . 24 89 . . Level 2 12 | . . 30 10 . . Level 3 . | . . . . . . Level 4 . | . . . . . . Level 5 . | . . . . . . High Security . | . . . . . . Max Security . | . . . . . . Squads Dispatched 5 | . 1 3 . . 1 Investigation 3 | . 1 2 . . . Extermination . | . . . . . . Reinforcement 2 | . . 1 . . 1 Assault . | . . . . . . Garrison . | . . . . . . Intercept . | . . . . . . Searches Triggered . | . . . . . . Construction Impeded 1 | . . . . . 1 Haulers Reinforced . | . . . . . . Active Scanning Responses . | . . . . . . Cargo Convoy Interrupts . | . . . . . . Stealth | -11 -10 -9 -9 -9 -8 --------- Run | Yrd Mat Mat Min Exi Min Distress Signals 5 | . . 4 . . 1 Communications Jammed . | . . . . . . Distress Signals . | . . . . . . Times Spotted 83 | . 2 52 15 . 14 Peak Tracking Total 7 | . 2 7 4 . 5 Tactical Retreats 14 | . . 8 2 . 4 Traps | -11 -10 -9 -9 -9 -8 ------- Run | Yrd Mat Mat Min Exi Min Traps Triggered . | . . . . . . Indirectly . | . . . . . . Trap Hack Attempts . | . . . . . . Triggered . | . . . . . . Disarmed . | . . . . . . Reprogrammed . | . . . . . . Reused . | . . . . . . Traps Extracted . | . . . . . . Installed . | . . . . . . Triggered . | . . . . . . Machines | -11 -10 -9 -9 -9 -8 ---------- Run | Yrd Mat Mat Min Exi Min Machines Disabled 3 | . . 3 . . . Max in Single Turn 1 | . . 1 . . . Machines Repaired . | . . . . . . Machines Dismantled . | . . . . . . Machines Sabotaged . | . . . . . . Overloaded Fab Kills . | . . . . . . Hacking | -11 -10 -9 -9 -9 -8 --------- Run | Yrd Mat Mat Min Exi Min Machines Accessed 5 | . 2 3 . . . Terminals 4 | . 2 2 . . . Fabricators . | . . . . . . Repair Stations . | . . . . . . Recycling Units . | . . . . . . Scanalyzers 1 | . . 1 . . . Garrison Access . | . . . . . . Total Hacks 16 | . 6 10 . . . Successful 7 | . 3 4 . . . Failed 9 | . 3 6 . . . Catastrophic 1 | . 1 . . . . Database Lockouts . | . . . . . . Manual 8 | . 4 3 . 1 . Terminals 12 | . 6 6 . . . Fabricators . | . . . . . . Repair Stations . | . . . . . . Recycling Units . | . . . . . . Scanalyzers 4 | . . 4 . . . Garrison Access . | . . . . . . Terminal Hacks 2 | . 1 1 . . . Robot Analysis 1 | . . 1 . . . Prototype ID Bank 1 | . 1 . . . . Fabricator Hacks . | . . . . . . Repair Station Hacks . | . . . . . . Recycling Unit Hacks . | . . . . . . Scanalyzer 2 | . . 2 . . . Insert Component 1 | . . 1 . . . Analyze 1 | . . 1 . . . Garrison Access Hacks . | . . . . . . Unauthorized Hacks 3 | . 2 1 . . . Terminals 3 | . 2 1 . . . Botnet 3 | . 2 1 . . . Fabricators . | . . . . . . Repair Stations . | . . . . . . Recycling Units . | . . . . . . Scanalyzers . | . . . . . . Garrison Access . | . . . . . . Data Cores Recovered . | . . . . . . Used . | . . . . . . Hacking Detections 5 | . 2 3 . . . Full Trace Events 3 | . 1 2 . . . Feedback Events . | . . . . . . Feedback Blocked . | . . . . . . Robot Schematics Acquired . | . . . . . . Robots Built . | . . . . . . Authchips . | . . . . . . Time . | . . . . . . Total Robot Build Rating . | . . . . . . Part Schematics Acquired 1 | . . 1 . . . Parts Built . | . . . . . . Authchips . | . . . . . . Time . | . . . . . . Total Part Build Rating . | . . . . . . Parts Repaired . | . . . . . . Time . | . . . . . . Parts Recycled . | . . . . . . Recycled Matter . | . . . . . . Retrieved Matter . | . . . . . . Retrieved Components . | . . . . . . Parts Scanalyzed 1 | . . 1 . . . Part Schematics Acquired 1 | . . 1 . . . Parts Damaged . | . . . . . . Bothacking | -11 -10 -9 -9 -9 -8 ------------ Run | Yrd Mat Mat Min Exi Min Used RIF Installer . | . . . . . . Robots Hacked . | . . . . . . Non-combat . | . . . . . . Combat . | . . . . . . Robot Hacks Applied . | . . . . . . Relay Couplers Released . | . . . . . . Fabnet Peak Effective % . | . . . . . . Robots Rewired . | . . . . . . Allies Hacked . | . . . . . . Hacks Repelled . | . . . . . . Allies | -11 -10 -9 -9 -9 -8 -------- Run | Yrd Mat Mat Min Exi Min Total Allies 2 | . . . 2 . . Largest Group 2 | . . . 2 1 . Highest-Rated Group 41 | . . . 41 31 . Highest-Rated Ally 31 | . . . 31 31 . Total Orders . | . . . . . . Ally Attacks 6 | . . . 6 . . Total Damage 105 | . . . 105 . . Kills 4 | . . . 4 . . Allies Corrupted . | . . . . . . Allies Melted . | . . . . . . Intel | -11 -10 -9 -9 -9 -8 ------- Run | Yrd Mat Mat Min Exi Min Robot Analysis Total 1 | . . 1 . . . Derelict Logs Recovered 1 | . . . 1 . . Drone Launches . | . . . . . . Drone Recoveries . | . . . . . . Exploration | -11 -10 -9 -9 -9 -8 ------------- Run | Yrd Mat Mat Min Exi Min Turns Passed 3195 | 151 198 865 697 522 762 Spaces Moved 1414 | 73 110 373 306 214 338 Core 24 | 4 . . . . 20 Treads 1223 | 69 110 373 306 214 151 Legs . | . . . . . . Wheels 167 | . . . . . 167 Hover . | . . . . . . Flight . | . . . . . . Fastest Speed 50 | 50 160 160 160 240 80 Average Speed 178 | 155 160 161 167 240 181 Slowest Speed 550 | 160 160 240 240 240 550 Overloaded Moves . | . . . . . . Propulsion Burnouts . | . . . . . . Robots Hopped . | . . . . . . Cave-ins Triggered . | . . . . . . Exploration Rate (%) 38 | 4 33 30 68 61 36 Regions Visited 5 Branch Regions 3 Pre-discovered Areas 1 | . . . 1 . . Known Exits Taken . | . . . . . . Unknown Exits Taken 5 | 1 1 1 1 1 . Scrap Searched 1 | . . . 1 . . Spaces Dug . | . . . . . . Terrain Destroyed 62 | . . 13 32 . 17 Melee . | . . . . . . Projectile 3 | . . 3 . . . AOE 59 | . . 10 32 . 17 Terrain Rammed . | . . . . . . Walls Destroyed . | . . . . . . Machines Disabled . | . . . . . . Actions | -11 -10 -9 -9 -9 -8 --------- Run | Yrd Mat Mat Min Exi Min Total 1886 | 93 120 515 458 225 475 Wait 285 | 4 . 57 127 . 97 Move 1409 | 72 109 372 305 213 338 Hop . | . . . . . . Pick Up 8 | 2 1 4 . 1 . Fast Attach 18 | 7 1 4 . 2 4 Attach 14 | . . 3 4 3 4 Detach 9 | . 1 3 . 4 1 Swap 13 | . 1 7 5 . . Drop 7 | . 1 3 1 2 . Fire 101 | 8 6 62 16 . 9 Melee . | . . . . . . Ram 22 | . . . . . 22 Kick . | . . . . . . Crush . | . . . . . . Escape Stasis . | . . . . . . Rewire . | . . . . . . Trap . | . . . . . . Miscellaneous . | . . . . . . Route ------- -11/Scrapyard -10/Materials (discovered 2 exits: *Mat / [*Min]) -9/Materials (discovered 2 exits: [*Min] / [*Sto]) -9/Mines (discovered 2 exits: [*Mat] / *Exi) -9/Exiles -8/Mines History --------- Turn | Location | Event 19 | -11/Scrapyard | Discovered new exit (range 15) 152 | -11/Scrapyard | Entered Materials 152 | -10/Materials | Discovered new exit (range 15) 300 | -10/Materials | Build established: Mutant 334 | -10/Materials | Discovered new exit (range 8) 350 | -10/Materials | Entered another Materials area 350 | -9/Materials | Evolved 2 slots: Utility x2 636 | -9/Materials | Discovered new exit (range 16) 1169 | -9/Materials | Discovered new exit (range 16) 1215 | -9/Materials | Entered Mines 1233 | -9/Mines | Lost 3 parts (1n2w) 1254 | -9/Mines | Core integrity fell below 50% 1579 | -9/Mines | Discovered new exit (range 13) 1902 | -9/Mines | Deemed a non-threat by the Exiles lab entrance 1902 | -9/Mines | Discovered new exit (range 5) 1912 | -9/Mines | Entered Exiles 1912 | -9/Exiles | Accompanied by 1 ally 1942 | -9/Exiles | Led the pair of lost Derelicts to a safe place 1970 | -9/Exiles | Met 8R-AWN 2008 | -9/Exiles | Met EX-HEX 2078 | -9/Exiles | Met EX-BIN 2112 | -9/Exiles | Aligned with FarCom system 2114 | -9/Exiles | Given EX-Vault access code 2140 | -9/Exiles | Build established: Infiltrator-Mutant 2174 | -9/Exiles | Opened EX-Vault 2187 | -9/Exiles | Found Prototype Energy Cannon 2187 | -9/Exiles | Identified YOLO Cannon 2192 | -9/Exiles | Found Prototype Device 2200 | -9/Exiles | Found Prototype Processor 2200 | -9/Exiles | Identified 0b10 Alert Chip 2255 | -9/Exiles | Warned to stay clear of 0b10 Research branches 2326 | -9/Exiles | Met EX-DEC 2410 | -9/Exiles | Discovered new exit (range 12) 2434 | -9/Exiles | Left Exiles lab with Army-in-a-Box 2434 | -9/Exiles | Entered Mines 2845 | -8/Mines | Lost 3 parts (1n2w) 2921 | -8/Mines | Core integrity fell below 20% 2964 | -8/Mines | System corruption reached 10% 2990 | -8/Mines | Lost 3 parts (1p1u1w) 3196 | -8/Mines | Destroyed by S-10 Pest with Light Assault Rifle Last Messages --------------- S-10 Pest destroyed. [Achievement: Fist Fight] Acquired 16 matter. Acquired Corrupted Lgt. Assault Rifle. Integrated Corrupted Lgt. Assault Rifle (+3). Acquired Lgt. Ion Engine. U-05 Engineer lays Concrete. System corrupted: Matter fused (-10). U-05 Engineer lays Concrete. Acquired 4 matter. R-06 Scavenger collects Corrupted Flight Unit. U-05 Engineer lays Concrete. U-05 Engineer builds a Wall. System corrupted: Heat flow error (+158). System corrupted: Component data lost. System corrupted: Matter fused (-8). System corrupted: Matter fused (-6). Wheel destroyed. Acquired 55 matter. System corrupted: Matter fused (-8). Map ----- +----------------------------------------------------+ | ?????????????????????????????????????????????????? | | ?????????????????????????????????????????????????? | | ?????????????????????????????????????????????????? | | ?????????????????????????????????????????????????? | | ?????????????????????????????????????????????????? | | ?????????????????????????????????????????????????? | | ?????????????????????????????????????????????????? | | ?????????????????????????????????????????????????? | | ?????????????????????????????????????????????????? | | ?????????????????????????????????????????????????? | | ?????????????????????????????????????????????????? | | ?????????????????????????????????????????????????? | | ?????????????????????????????????????????????????? | | ?????????????????????????????????????????????????? | | ?????????????????????????????????????????????????? | | ?????????????????????????????????????????????????? | | ???????????????????? ??????????? ????????????????? | | ?????????????????????????????????????????????????? | | ?????????????????????????????????????????????????? | | ??????????????????????????###????????????????????? | | ?????????????????????????? s#???????#????????????? | | ????????######????????????# #???????????s????????? | | ???????########?????????#?# #??????????s?????????? | | ???????### ###??????????##s#????????????????????? | | ???????## ##???####?#### #???????????s????????? | | ???????## ##??## ### @ s#????????????????????? | | ????##### ##?## ## ##s#?????? ????s????????? | | ??####### ##### ##g## #????????????????????? | | ?####### ##?# g ## #???#? ??????????????? | | ?#### ###?# g##### #??????? ????????????? | | ?### ####?# g#?### ###???? ?????????????? | | ?### # ###??## g ##### ####?????????????????? | | ?#### ######??#### #### ####????????????????? | | ??#### ######?#### ### ####???????????????? | | ?##### ##### ## ###???????????????? | | ##### #### # ##???????????????? | | ### ### #### ##???????????????? | | ## ## #### """ ##???????????????? | | # % % ##### """ ##?#?????????????? | | ######### """ ##???????????????? | | ######### ##???????????????? | | #######????## ## ################### | | ########?????### #### ################### | | ########??????######## # | | ######??????????##### ################# # | | ## ###?????#????####### ################# # | | ## ################### ###### ####???## # | | ## ############### ######## # | | ####### # | | #### ####### #### # | +----------------------------------------------------+ Best States ------------- Heat Dissipation 28 Energy Generation 14 Energy Capacity 265 Matter Stores 300 Matter Capacity 300 Sight Range 16 Terrain Scan Range 16 Terrain Scan Density 10 ECM Strength 1 Additional Mass Support 6 Evasion (%) 44 Recoil Reduction 2 Item Schematics ----------------- Imp. Terrain Scanner | -9/Materials | Scanalyzed Robot Schematics ------------------ None Fabricated ------------ Nothing Alien Tech Used ----------------- None Achievements -------------- Fist Fight Challenges ------------ None Game ------ Seed TransdimensionalCompactMount Manual? 0 Play Time 00:31:19 Cumulative 19.3 hours Start 2024.07.22 @ 22:24:42 End 2024.07.22 @ 22:56:24 Sessions 1 Manual Loads 0 Difficulty Rogue Special Mode None Game No. 18 Rogue 18 Adventurer 0 Explorer 0 Win Type - Total 0 Types 0/0/0/0/0/0/0/0/0 Lore% 14 Gallery% 22 Achievement% 17 Wizard Run 0 Options --------- Layout 1 ASCII 0 Keyboard 0 Movement Arrows Keybinds 0 Fullscreen 1 Font 16/Terminus Map View 55x38 Zoom Use 0% Tactical HUD 0 Map Filters NONE Filters NONE Steam 1 RUN: 460dbb5c-37b7-4abd-89c5-68d23214395b